bitfinex/quotes_ETHUSD_20250605
["timestamp","ask_amount","ask_price","bid_price","bid_amount"]
[1749085225193,4.50957237,2608.2,2608.1,16.12]
[1749085225552,1.13767834,2608.2,2608.1,16.12]
[1749085225767,0.55,2608.3,2608.1,16.12]
[1749085225970,3.92189403,2608.3,2608.1,16.12]
[1749085227779,1.4534,2608.2,2608.1,16.12]
[1749085228656,2.0034,2608.2,2608.1,9.882]
[1749085228870,2.5409294,2608.2,2608.1,16.12]
[1749085229088,2.4292294,2608.2,2608.1,16.12]
[1749085231863,2.4292294,2608.2,2608.1,9.882]
[1749085232096,5.80112343,2608.2,2608.1,9.882]
[1749085233060,5.80112343,2608.2,2608.1,16.12]
[1749085235963,5.80112343,2608.2,2608.1,16.119]
[1749085236678,5.80112343,2608.2,2608.1,9.882]
[1749085237016,5.80112343,2608.2,2608.1,16.12]
[1749085238128,5.80112343,2608.2,2608.1,9.882]
[1749085238313,5.80112343,2608.2,2608.1,16.119]
[1749085240826,0.5375294,2608.2,2608.1,16.119]
[1749085240983,3.37189403,2608.3,2608.1,16.119]
[1749085241624,3.37189403,2608.5,2608.1,16.119]
[1749085242009,3.37189403,2608.6,2608.1,16.119]
[1749085242384,0.55,2608.5,2608.1,16.119]
[1749085242585,0.55,2608.3,2608.1,16.119]
[1749085244222,3.37189403,2608.6,2608.3,10.0]
[1749085244532,3.37189403,2608.6,2608.2,5.692777]
[1749085244533,0.55,2608.5,2608.2,5.692777]
[1749085244738,0.55,2608.5,2608.3,10.0]
[1749085245027,0.55,2608.5,2608.1,16.119]
[1749085245528,0.55,2608.3,2608.1,16.119]
[1749085247756,0.55,2608.3,2608.2,1.615]
[1749085248031,0.55,2608.3,2608.2,7.851]
[1749085249509,0.55,2608.3,2608.2,12.566979]
[1749085249709,0.55,2608.3,2608.2,10.494831]
[1749085251721,1.3766,2608.9,2608.3,10.0]
[1749085251722,0.55,2608.6,2608.3,10.0]
[1749085253233,0.55,2608.6,2608.4,6.236]
[1749085254228,3.92189403,2608.6,2608.4,6.236]
[1749085255242,0.55,2608.7,2608.4,6.236]
[1749085256845,3.37189403,2608.6,2608.4,6.236]
[1749085257851,0.55,2608.7,2608.4,6.236]
[1749085259754,3.37189403,2608.6,2608.4,6.236]
[1749085260718,3.37189403,2608.8,2608.4,6.236]
[1749085261056,0.55,2608.7,2608.4,6.236]
[1749085263936,0.55,2608.7,2608.4,16.236]
[1749085264252,0.55,2608.7,2608.4,6.236]
[1749085264455,0.55,2608.7,2608.4,16.236]
[1749085264842,0.55,2608.7,2608.4,6.236]
[1749085266058,0.55,2608.7,2608.5,6.234]
[1749085267958,3.37189403,2608.6,2608.4,10.0]
[1749085268123,3.92189403,2608.6,2608.5,7.847]
[1749085273353,3.92189403,2608.6,2608.5,1.613]
[1749085273667,0.55,2608.3,2608.1,8.267]
[1749085273866,3.92189403,2608.2,2608.1,8.267]
[1749085274027,3.92189403,2608.2,2608.1,7.847]
[1749085275135,0.55,2608.2,2608.1,7.847]
[1749085275480,0.55,2608.2,2608.1,16.112]
[1749085275882,1.3315,2608.6,2608.1,18.787936]
[1749085276174,1.3315,2608.6,2608.2,17.613523]
[1749085276175,3.37189403,2608.6,2608.2,17.613523]
[1749085276374,3.37189403,2608.6,2608.1,16.112]
[1749085276375,3.37189403,2608.6,2608.3,7.867649]
[1749085276574,0.55,2608.5,2608.1,16.112]
[1749085276738,0.55,2608.5,2608.2,27.311924]
[1749085276939,0.55,2608.5,2608.2,17.311924]
[1749085277474,0.55,2608.7,2608.2,17.311924]
[1749085277676,0.55,2608.7,2608.2,10.953449]
[1749085277914,0.55,2608.7,2608.2,10.454261]
[1749085278081,0.55,2608.5,2608.2,10.454261]
[1749085278576,0.55,2608.5,2608.1,16.112]
[1749085279477,3.37189403,2608.6,2608.3,10.0]
[1749085279645,3.37189403,2608.6,2608.3,4.071161]
[1749085279847,3.37189403,2608.6,2608.2,10.0]
[1749085280180,3.37189403,2608.6,2608.3,10.0]
[1749085280479,3.84223343,2608.6,2608.3,10.0]
[1749085280656,3.84223343,2608.6,2608.2,10.0]
[1749085281238,3.84223343,2608.6,2608.3,10.0]
[1749085281646,3.84223343,2608.6,2608.2,10.0]
[1749085281853,3.37189403,2608.6,2608.2,10.0]
[1749085282047,3.37189403,2608.6,2608.4,10.0]
[1749085282353,0.55,2608.7,2608.3,10.0]
[1749085282554,0.55,2608.7,2608.3,9.345627]
[1749085282754,0.55,2608.7,2608.2,7.945627]
[1749085282993,0.55,2608.7,2608.4,10.0]
[1749085283153,0.57,2608.9,2608.5,10.0]
[1749085283358,0.57,2608.9,2608.7,10.0]
[1749085283586,0.57,2608.9,2608.8,1.612]
[1749085283953,0.02,2608.9,2608.8,25.764847]
[1749085284159,0.02,2608.9,2608.8,8.542283]
[1749085284366,0.02,2608.9,2608.8,8.254283]
[1749085284571,0.02,2608.9,2608.8,12.00949503]
[1749085284785,0.00047649,2608.9,2608.8,12.79509743]
[1749085285072,0.00047649,2608.9,2608.8,8.63676431]
[1749085285460,0.00047649,2608.9,2608.8,8.254283]
[1749085286350,0.00047649,2608.9,2608.8,6.642283]
[1749085286554,0.00047649,2608.9,2608.8,14.487283]
[1749085287290,0.00047649,2608.9,2608.8,7.845]
[1749085287491,0.00047649,2608.9,2608.8,12.607939]
[1749085287798,0.00047649,2608.9,2608.8,13.903323]
[1749085287966,0.00047649,2608.9,2608.1,12.0203035]
[1749085287967,0.00047649,2608.9,2608.2,30.0]
[1749085288297,0.00047649,2608.9,2608.4,21.198733]
[1749085288753,0.00047649,2608.9,2608.5,7.844]
[1749085289113,0.39271354,2608.9,2608.6,2.285807]
[1749085289270,0.39271354,2608.9,2608.7,3.049]
[1749085289473,0.00047649,2608.9,2608.7,3.049]
[1749085291801,0.55047649,2608.9,2608.8,6.232]
[1749085294329,0.55047649,2608.9,2608.5,1.612]
[1749085294514,0.55047649,2608.9,2608.8,6.231]
[1749085295232,0.00047649,2608.9,2608.8,6.231]
[1749085296319,0.39271354,2608.9,2608.8,6.231]
[1749085299105,0.39271354,2608.9,2608.5,1.612]
[1749085299298,0.00047649,2608.9,2608.6,6.231]
[1749085299500,0.00047649,2608.9,2608.7,10.0]
[1749085300597,0.00047649,2608.9,2608.8,10.0]
[1749085300838,0.00047649,2608.9,2608.7,14.96189]
[1749085301023,0.00047649,2608.9,2608.8,10.0]
[1749085301224,0.00047649,2608.9,2608.7,7.986007]
[1749085301402,0.39271354,2608.9,2608.8,10.0]
[1749085302038,0.39271354,2608.9,2608.7,16.461656]
[1749085302343,0.00047649,2608.9,2608.8,10.0]
[1749085304032,0.00047649,2608.9,2608.7,15.499833]
[1749085304344,0.00047649,2608.9,2608.8,8.264]
[1749085309246,0.00047649,2608.9,2608.8,1.612]
[1749085310553,0.00047649,2608.9,2608.8,7.843]
[1749085312151,0.00047649,2608.9,2608.8,28.959706]
[1749085312312,0.00047649,2608.9,2608.8,39.015903]
[1749085315032,0.00047649,2608.9,2608.8,20.087033]
[1749085315348,0.00047649,2608.9,2608.8,34.580033]
[1749085322026,0.00047649,2608.9,2608.8,34.579033]
[1749085323130,0.00047649,2608.9,2608.8,10.738033]
[1749085323677,0.00047649,2608.9,2608.8,16.103]
[1749085323823,1.07882354,2608.9,2608.8,9.874]
[1749085324166,1.07882354,2608.9,2608.8,16.103]
[1749085325562,1.07882354,2608.9,2608.8,9.874]
[1749085326619,1.07882354,2608.9,2608.8,16.103]
[1749085328932,0.52882354,2608.9,2608.8,24.399826]
[1749085329126,0.00047649,2608.9,2608.8,24.399826]
[1749085329435,0.00047649,2608.9,2608.8,21.307992]
[1749085332058,0.00047649,2608.9,2608.8,20.768598]
[1749085338874,0.00047649,2608.9,2608.8,16.103]
[1749085339659,0.00047649,2608.9,2608.8,23.443996]
[1749085342255,0.00047649,2608.9,2608.8,20.33521]
[1749085342457,0.00047649,2608.9,2608.8,19.406414]
[1749085343391,0.00047649,2608.9,2608.8,19.404414]
[1749085345524,0.00047649,2608.9,2608.8,13.176414]
[1749085345649,0.00047649,2608.9,2608.8,16.101]
[1749085347443,1.9224,2609.0,2608.9,0.07872351]
[1749085347640,5.29429403,2609.0,2608.9,0.07872351]
[1749085348897,5.29429403,2609.0,2608.9,6.30672351]
[1749085349112,5.82372343,2609.0,2608.9,6.30672351]
[1749085350674,4.45132343,2609.0,2608.9,6.30672351]
[1749085351610,4.45132343,2609.0,2608.9,7.91672351]
[1749085351828,1.0794294,2609.0,2608.9,7.91672351]
[1749085352130,0.55,2609.0,2608.9,17.35070351]
[1749085352277,0.55,2609.3,2609.0,7.767625]
[1749085352477,0.55,2609.3,2609.1,10.0]
[1749085352677,0.55,2609.3,2609.0,23.885714]
[1749085352993,0.55,2609.3,2609.0,13.885714]
[1749085355008,0.55,2609.3,2609.0,12.413564]
[1749085355214,0.55,2609.3,2609.0,9.767564]
[1749085355839,1.5192,2609.8,2609.0,9.767564]
[1749085356046,3.37189403,2609.5,2609.0,9.767564]
[1749085356637,4.86069403,2609.5,2609.0,9.767564]
[1749085358034,1.4888,2609.5,2609.0,9.767564]
[1749085358707,4.86069403,2609.5,2609.0,9.767564]
[1749085359232,0.55,2609.8,2609.0,9.767564]
[1749085359439,5.30639403,2609.7,2609.1,0.0572]
[1749085359596,5.30639403,2609.7,2609.2,27.230201]
[1749085359934,5.30639403,2609.7,2609.2,17.238978]
[1749085360134,5.30639403,2609.7,2609.2,16.292242]
[1749085360834,3.37189403,2609.7,2609.2,16.292242]
[1749085361061,0.55,2609.8,2609.2,16.292242]
[1749085361210,3.37189403,2609.7,2609.2,16.292242]
[1749085364026,0.55,2609.6,2609.3,6.226]
[1749085364206,0.55,2609.6,2609.4,20.742711]
[1749085364412,0.55,2609.6,2609.5,4.755711]
[1749085365624,4.89774036,2609.9,2609.5,4.755711]
[1749085365830,0.55,2609.8,2609.5,1.609]
[1749085367117,0.55,2609.8,2609.6,6.226]
[1749085367335,0.55,2609.8,2609.6,14.488]
[1749085370066,3.92394036,2609.9,2609.6,14.488]
[1749085371449,3.92394036,2609.9,2609.6,8.262]
[1749085371649,3.92394036,2609.9,2609.7,6.225]
[1749085374622,3.37394036,2609.9,2609.7,6.225]
[1749085376042,3.37394036,2609.9,2609.6,8.262]
[1749085376043,2.0068,2609.8,2609.6,8.262]
[1749085376380,2.0068,2609.8,2609.7,7.833]
[1749085377524,5.37869403,2609.8,2609.7,7.833]
[1749085377731,3.92189403,2609.8,2609.7,7.833]
[1749085377975,3.37189403,2609.8,2609.7,7.833]
[1749085379330,0.00204633,2609.9,2609.7,7.833]
[1749085381570,0.00204633,2609.9,2609.8,17.246306]
[1749085382094,0.00204633,2609.9,2609.8,12.60393]
[1749085382259,0.00204633,2609.9,2609.8,7.54421]
[1749085384263,0.55204633,2609.9,2609.8,7.54421]
[1749085384503,0.55204633,2609.9,2609.8,7.832]
[1749085385700,0.2,2609.6,2608.5,3.37189403]
[1749085385869,0.2,2609.6,2608.7,30.0]
[1749085386775,0.2,2609.6,2608.9,40.0]
[1749085387008,0.2,2609.6,2608.9,30.0]
[1749085388532,0.2,2609.6,2608.9,20.32665866]
[1749085388824,0.2,2609.6,2608.9,30.0]
[1749085389333,0.2,2609.6,2608.9,30.40335693]
[1749085389499,0.2,2609.6,2609.0,30.0]
[1749085389690,0.2,2609.6,2609.1,30.0]
[1749085389882,0.2,2609.6,2609.3,40.0]
[1749085390087,0.2,2609.6,2609.3,30.0]
[1749085392314,0.2,2609.6,2609.3,24.930182]
[1749085393106,0.2,2609.8,2609.3,24.930182]
[1749085393504,0.2,2609.6,2609.3,24.930182]
[1749085393701,0.2,2609.6,2609.4,6.223]
[1749085393905,0.2,2609.6,2609.5,20.186695]
[1749085394542,0.2,2609.6,2609.5,19.610516]
[1749085394915,0.2,2609.6,2609.5,17.711516]
[1749085395308,0.2,2609.6,2609.5,25.972516]
[1749085395905,0.2,2609.6,2609.5,11.657681]
[1749085396105,0.2,2609.6,2609.5,8.261]
[1749085396427,0.2,2609.6,2609.5,11.358619]
[1749085397709,0.2,2609.6,2609.5,12.966619]
[1749085397911,0.2,2609.8,2609.6,30.0]
[1749085400331,0.2,2609.8,2609.6,29.203003]
[1749085402509,0.2,2609.8,2609.7,31.608]
[1749085403540,0.2,2609.8,2609.7,29.057405]
[1749085403706,0.2,2609.8,2609.7,28.394703]
[1749085404344,0.2,2609.8,2609.7,26.904876]
[1749085404547,0.2,2609.8,2609.7,25.425227]
[1749085405709,0.00204633,2609.9,2609.8,30.0]
[1749085406147,0.00204633,2609.9,2609.8,30.78583824]
[1749085406304,0.00020513,2609.9,2609.8,29.459621]
[1749085406643,0.00020513,2609.9,2609.8,20.801829]
[1749085406842,0.00020513,2609.9,2609.8,36.573668]
[1749085407062,0.00020513,2609.9,2609.8,36.003968]
[1749085407243,0.00020513,2609.9,2609.8,20.871822]
[1749085407611,0.00020513,2609.9,2609.8,17.133146]
[1749085407811,0.00020513,2609.9,2609.8,12.405634]
[1749085408947,0.00020513,2609.9,2609.5,8.261]
[1749085409112,0.00020513,2609.9,2609.8,10.835385]
[1749085409763,0.20020513,2609.9,2609.8,10.835385]
[1749085410352,0.20020513,2609.9,2609.8,29.639919]
[1749085410512,0.20020513,2609.9,2609.8,19.156617]
[1749085410951,0.20020513,2609.9,2609.8,11.307567]
[1749085412058,0.00020513,2609.9,2609.8,11.307567]
[1749085412227,0.20020513,2609.9,2609.8,11.307567]
[1749085414719,0.20020513,2609.9,2609.7,22.289344]
[1749085414918,0.20020513,2609.9,2609.8,7.828]
[1749085415222,0.55741505,2609.9,2609.8,7.828]
[1749085415757,0.20020513,2609.9,2609.8,7.828]
[1749085416762,0.20020513,2609.9,2609.8,16.334385]
[1749085416922,0.20020513,2609.9,2609.8,7.828]
[1749085417136,0.20020513,2609.9,2609.8,11.62644]
[1749085417370,0.20020513,2609.9,2609.8,12.32944]
[1749085417873,0.20020513,2609.9,2609.8,7.828]
[1749085418046,0.20020513,2609.9,2609.8,12.21044]
[1749085418567,0.20020513,2609.9,2609.8,20.46944]
[1749085420980,0.00020513,2609.9,2609.8,20.46944]
[1749085422078,0.00020513,2609.9,2609.8,18.934349]
[1749085422781,0.00020513,2609.9,2609.8,12.713349]
[1749085422984,0.00020513,2609.9,2609.8,18.934349]
[1749085424775,0.2,2610.5,2609.9,30.0]
[1749085424975,0.2,2610.3,2609.9,30.0]
[1749085429539,0.2,2610.3,2609.9,27.83917]
[1749085436076,0.2,2610.4,2609.9,27.83917]
[1749085437480,0.2,2610.4,2609.9,26.037075]
[1749085437677,0.2,2610.4,2610.1,25.128932]
[1749085437915,0.6954394,2610.4,2610.1,15.128932]
[1749085438120,0.2,2610.0,2609.8,9.866]
[1749085438282,0.2,2610.0,2609.9,6.22]
[1749085438584,0.2,2610.0,2609.9,8.991701]
[1749085440387,0.2,2610.0,2609.9,6.22]
[1749085440581,0.2,2610.0,2609.9,9.411461]
[1749085440810,0.2,2610.0,2609.9,6.22]
[1749085441283,0.2,2610.0,2609.9,10.408574]
[1749085441989,0.2,2610.0,2609.9,9.293574]
[1749085443385,0.2,2610.0,2609.9,9.227574]
[1749085443933,0.2,2610.2,2609.9,9.227574]
[1749085444239,0.2,2610.2,2610.0,30.0]
[1749085445904,0.2,2610.2,2610.0,29.119558]
[1749085446307,0.2,2610.2,2610.0,14.91251]
[1749085446512,0.2,2610.2,2610.0,11.709771]
[1749085446713,0.2,2610.2,2610.0,11.237432]
[1749085450724,0.2,2610.2,2610.1,10.0]
[1749085451048,1.6902,2610.2,2610.1,10.055137]
[1749085451227,2.1964094,2610.2,2610.1,6.22]
[1749085451428,0.7062094,2610.2,2610.1,16.128573]
[1749085451641,0.2,2610.0,2609.9,40.0]
[1749085451812,0.2,2610.0,2609.9,23.416349]
[1749085452017,0.2,2610.0,2609.9,19.717532]
[1749085452654,0.2,2610.0,2609.9,21.323532]
[1749085452854,0.2,2610.0,2609.9,19.717532]
[1749085453050,0.2,2610.0,2609.9,27.543532]
[1749085453254,0.2,2610.0,2609.9,21.814645]
[1749085453614,0.2,2610.0,2609.9,19.277539]
[1749085453815,0.2,2610.0,2609.9,11.667309]
[1749085454451,0.2,2610.0,2609.9,3.841309]
[1749085454615,0.2,2610.0,2609.9,11.667309]
[1749085455543,0.2,2610.0,2609.9,3.841309]
[1749085455731,0.2,2610.0,2609.9,11.667309]
[1749085457420,0.2,2610.0,2609.9,9.975186]
[1749085458959,0.2,2610.0,2609.9,4.171405]
[1749085459179,0.2,2610.0,2609.9,11.997405]
[1749085459720,0.2,2610.0,2609.9,10.182121]
[1749085460061,0.2,2610.0,2609.9,11.672724]
[1749085460273,0.2,2610.0,2609.9,5.452724]
[1749085460431,0.2,2610.0,2609.9,11.671724]
[1749085465692,0.2,2610.2,2609.9,11.671724]
[1749085465848,0.2,2610.4,2610.0,30.0]
[1749085467480,0.2,2610.4,2610.0,29.512702]
[1749085468006,0.2,2610.4,2610.2,3.3509]
[1749085468291,0.2,2610.4,2610.3,10.0]
[1749085468594,0.2,2610.4,2610.2,18.5653]
[1749085468895,0.2,2610.4,2610.2,10.199221]
[1749085469081,0.2,2610.4,2610.1,7.824]
[1749085469390,3.57189403,2610.4,2610.2,6.219]
[1749085469692,1.3884,2610.3,2610.2,8.351019]
[1749085472108,1.3884,2610.3,2610.2,16.610019]
[1749085472310,1.3884,2610.3,2610.2,8.259]
[1749085472471,1.9384,2610.3,2610.2,9.864]
[1749085472806,2.0019,2610.3,2610.2,16.083]
[1749085472962,2.59499834,2610.3,2610.2,16.083]
[1749085477196,2.59499834,2610.3,2610.2,8.259]
[1749085477502,2.59499834,2610.3,2610.2,16.083]
[1749085482182,0.35833353,2610.3,2610.2,16.083]
[1749085485392,1.74133353,2610.3,2610.2,16.083]
[1749085485925,1.74133353,2610.3,2610.2,8.259]
[1749085486127,2.29133353,2610.3,2610.2,16.083]
[1749085492489,3.92908343,2610.4,2610.2,16.083]
[1749085493095,4.47908343,2610.4,2610.3,7.824]
[1749085498222,4.47908343,2610.4,2610.3,1.606]
[1749085498419,5.82918343,2610.4,2610.3,7.824]
[1749085500033,5.82918343,2610.4,2610.3,1.606]
[1749085500207,5.82918343,2610.4,2610.3,7.824]
[1749085508872,0.55,2610.3,2610.2,8.259]
[1749085509044,1.13291834,2610.3,2610.2,16.081]
[1749085509231,1.13291834,2610.3,2610.2,9.864]
[1749085509432,1.13291834,2610.3,2610.2,16.081]
[1749085510153,1.13291834,2610.3,2610.2,9.864]
[1749085510333,1.13291834,2610.3,2610.2,16.081]
[1749085510529,1.13291834,2610.3,2610.2,9.864]
[1749085510872,0.2,2609.7,2609.2,30.0]
[1749085511043,0.2,2609.7,2609.4,38.855938]
[1749085511247,0.2,2609.7,2609.4,28.855938]
[1749085511626,0.2,2609.7,2609.4,27.71016]
[1749085512040,0.2,2609.7,2609.6,23.729851]
[1749085512254,0.2,2609.7,2609.6,13.729851]
[1749085512760,0.2,2609.7,2609.6,5.7208]
[1749085513356,0.2,2609.7,2609.6,2.922]
[1749085513556,0.2,2609.7,2609.5,6.217]
[1749085513855,0.2,2609.7,2609.4,10.0]
[1749085514057,0.2,2609.7,2609.4,14.02272]
[1749085514283,0.2,2609.7,2609.5,6.217]
[1749085514420,0.2,2609.7,2609.6,7.822]
[1749085515357,0.2,2609.7,2609.6,16.082]
[1749085516319,2.0933,2609.7,2609.6,8.26]
[1749085516523,2.6418194,2609.7,2609.6,9.865]
[1749085516768,2.6418194,2609.7,2609.6,16.082]
[1749085517424,2.6418194,2609.7,2609.6,8.26]
[1749085517621,2.6418194,2609.7,2609.6,16.082]
[1749085518664,2.6418194,2609.7,2609.6,8.26]
[1749085518825,2.6418194,2609.7,2609.6,16.083]
[1749085523131,2.6418194,2609.7,2609.6,9.865]
[1749085523331,2.6418194,2609.7,2609.6,16.083]
[1749085524071,2.6418194,2609.7,2609.6,9.865]
[1749085524269,2.6418194,2609.7,2609.6,16.083]
[1749085524634,2.6418194,2609.7,2609.6,8.26]
[1749085524971,2.6418194,2609.7,2609.6,9.865]
[1749085525173,2.6418194,2609.7,2609.6,16.083]
[1749085526030,2.6418194,2609.7,2609.6,9.865]
[1749085526227,0.2,2608.5,2607.2,40.0]
[1749085526432,3.37189403,2608.4,2607.4,30.0]
[1749085526667,3.37189403,2608.4,2607.5,30.73933824]
[1749085526856,0.2,2608.5,2607.6,30.0]
[1749085527147,0.2,2608.5,2607.8,40.0]
[1749085527340,0.2,2608.5,2608.0,38.848142]
[1749085527637,0.2,2608.5,2608.2,27.593394]
[1749085527830,0.2,2608.5,2608.2,17.593394]
[1749085530588,0.2,2608.5,2608.4,10.0]
[1749085530745,0.2,2608.5,2608.3,0.0582]
[1749085531134,0.2,2608.5,2608.4,6.219]
[1749085533281,0.2,2608.3,2608.2,2.020748]
[1749085533584,0.2,2608.3,2608.2,8.239748]
[1749085533781,0.2,2608.3,2608.2,1.605]
[1749085534078,1.2486394,2608.3,2608.2,1.605]
[1749085534266,0.2,2607.9,2607.8,10.222346]
[1749085534462,0.2,2607.9,2607.8,18.046346]
[1749085535177,0.2,2608.1,2607.9,0.0582]
[1749085535331,0.2,2608.1,2608.0,24.023605]
[1749085535542,0.2,2608.1,2608.0,23.563846]
[1749085535838,0.2,2608.1,2608.0,23.074473]
[1749085536052,0.2,2608.1,2608.0,13.901641]
[1749085536681,0.2,2608.1,2608.0,7.666811]
[1749085537788,3.37189403,2608.5,2607.8,7.824]
[1749085537947,0.2,2608.1,2607.9,30.0]
[1749085539679,0.2,2608.1,2607.9,27.151442]
[1749085541257,3.92189403,2608.7,2607.9,27.151442]
[1749085541491,1.4634,2608.9,2607.9,27.151442]
[1749085541492,0.2,2608.5,2607.9,27.151442]
[1749085541713,0.2,2608.2,2608.1,40.0]
[1749085541991,0.2,2608.2,2607.9,30.0]
[1749085542151,0.2,2608.4,2607.9,30.0]
[1749085542350,0.2,2608.2,2607.9,30.0]
[1749085545596,0.2,2608.2,2608.1,34.709324]
[1749085545799,0.2,2608.2,2608.1,24.709324]
[1749085548169,0.2,2608.2,2608.1,20.088371]
[1749085548981,0.2,2608.4,2608.1,20.088371]
[1749085549182,0.2,2608.2,2608.1,20.088371]
[1749085549383,0.2,2608.2,2608.1,19.883006]
[1749085549706,0.2,2608.2,2608.1,28.147006]
[1749085549865,0.2,2608.2,2608.1,18.91469591]
[1749085550065,0.2,2608.2,2608.1,23.054371]
[1749085550266,0.2,2608.4,2608.2,23.621489]
[1749085550468,0.2,2608.4,2608.3,18.067294]
[1749085551631,0.2,2608.6,2608.3,18.067294]
[1749085551769,0.2,2608.8,2608.5,30.0]
[1749085551969,1.4765,2609.6,2608.7,40.0]
[1749085552277,0.2,2609.1,2609.0,10.380838]
[1749085552588,0.2,2609.1,2609.0,11.985838]
[1749085553023,0.2,2609.1,2609.0,11.252673]
[1749085553537,0.2,2609.1,2608.1,8.64648131]
[1749085553701,0.2,2608.9,2608.3,30.0]
[1749085554174,0.2,2608.9,2608.5,40.0]
[1749085554376,0.2,2609.1,2608.5,30.0]
[1749085554812,0.2,2608.9,2608.5,30.0]
[1749085555215,0.2,2608.9,2608.3,30.0]
[1749085555515,0.55,2609.6,2608.5,14.171477]
[1749085555516,0.2,2608.7,2608.5,14.171477]
[1749085559012,0.2,2608.7,2608.6,12.322607]
[1749085560536,0.2,2608.7,2608.6,6.219]
[1749085560710,0.2,2608.7,2608.6,14.009782]
[1749085561110,0.2,2608.7,2608.6,22.273782]
[1749085561606,0.2,2608.7,2608.6,16.087]
[1749085562260,0.2,2608.7,2608.6,19.007782]
[1749085562951,0.2,2609.1,2608.7,30.0]
[1749085563149,0.2,2609.1,2608.7,30.38248131]
[1749085563308,0.2,2609.1,2608.8,30.0]
[1749085563717,0.2,2609.1,2608.8,3.37189403]
[1749085563921,0.2,2609.1,2608.9,40.0]
[1749085564163,0.2,2609.1,2608.9,30.0]
[1749085566466,0.2,2609.3,2608.9,30.0]
[1749085567244,0.2,2609.0,2608.9,30.0]
[1749085567441,0.2,2609.2,2608.9,30.0]
[1749085567627,4.85729403,2609.9,2608.9,30.0]
[1749085567628,0.2,2609.0,2608.9,30.0]
[1749085567973,0.2,2609.0,2608.9,1.604]
[1749085568152,0.2,2609.0,2608.9,14.402741]
[1749085569275,0.2,2609.0,2608.9,7.301]
[1749085569482,0.2,2609.0,2608.9,7.822]
[1749085569650,0.2,2609.0,2608.9,17.938126]
[1749085571277,0.2,2609.0,2608.9,11.720126]
[1749085571482,0.2,2609.0,2608.9,17.938126]
[1749085572145,0.2,2609.0,2608.9,13.426972]
[1749085572640,0.2,2609.0,2608.9,7.822]
[1749085572840,0.2,2609.0,2608.9,20.697393]
[1749085573294,0.2,2609.0,2608.9,20.090948]
[1749085574169,0.2,2609.0,2608.9,11.359378]
[1749085574371,0.2,2609.0,2608.9,10.159366]
[1749085574758,0.2,2609.0,2608.9,3.941366]
[1749085574986,0.2,2609.0,2608.9,10.158366]
[1749085575187,0.2,2609.0,2608.9,3.941366]
[1749085575386,0.2,2609.0,2608.9,10.158366]
[1749085575795,0.2,2609.0,2608.9,3.941366]
[1749085575955,0.2,2609.0,2608.9,10.159366]
[1749085577586,0.2,2609.0,2608.9,26.159366]
[1749085578900,0.2,2609.0,2608.9,26.158366]
[1749085582021,0.2,2609.0,2608.9,23.821]
[1749085582218,0.2,2609.0,2608.9,28.042]
[1749085582434,0.2,2609.0,2608.9,21.825]
[1749085582581,0.2,2609.0,2608.9,28.042]
[1749085583819,0.2,2609.0,2608.9,36.304]
[1749085591001,1.3469,2609.6,2608.9,20.303]
[1749085591201,1.3469,2609.6,2609.0,30.0]
[1749085591406,1.8187794,2609.6,2609.0,26.947351]
[1749085591841,0.2,2609.1,2609.0,26.947351]
[1749085592605,1.3469,2609.6,2609.0,26.947351]
[1749085593013,0.2,2609.1,2609.0,26.947351]
[1749085593443,0.2,2609.1,2609.0,11.504329]
[1749085593871,0.2,2609.1,2609.0,19.324329]
[1749085595289,0.2,2609.1,2609.0,10.528008]
[1749085595986,0.2,2609.1,2609.0,15.587864]
[1749085597063,0.2,2609.1,2609.0,23.849864]
[1749085597677,1.3522,2609.6,2609.0,23.849864]
[1749085597879,0.2,2609.2,2609.1,18.138762]
[1749085599495,1.3522,2609.6,2609.1,18.138762]
[1749085599691,0.2,2609.3,2609.1,18.138762]
[1749085600811,0.2,2609.5,2609.1,21.51065603]
[1749085600983,0.2,2609.5,2609.2,0.38248131]
[1749085601187,0.2,2609.5,2609.3,30.0]
[1749085601387,0.2,2609.5,2609.2,30.0]
[1749085605011,0.2,2609.6,2609.2,30.0]
[1749085605318,0.2,2609.4,2609.2,30.0]
[1749085605501,0.2,2609.4,2609.2,21.802056]
[1749085607014,0.2,2609.4,2609.2,14.16832297]
[1749085607889,0.2,2609.4,2609.3,37.819]
[1749085609133,0.2,2609.6,2609.5,17.964971]
[1749085610704,1.5379,2609.6,2609.3,1.603]
[1749085611032,0.2,2609.4,2609.3,21.587695]
[1749085611335,0.2,2609.4,2609.3,27.802695]
[1749085612037,0.2,2609.4,2609.3,21.587695]
[1749085612334,0.2,2609.4,2609.3,27.802695]
[1749085612556,0.2,2609.4,2609.3,21.587695]
[1749085612827,0.2,2609.4,2609.3,27.802695]
[1749085623348,0.2,2609.7,2609.4,30.0]